Cogmind - Beta 12 X1 @@@ ROGUE MODE // 2022.08.03 @ 11:26:10 Player: btmk16 Result: Destroyed by G-67 Veteran with Field Laser Performance ------------- Evolutions (5) 2500 Regions Visited (16) 3200 Robots Destroyed (37) 185 Value Destroyed (865) 865 Prototype IDs (41) 820 Alien Tech Used (0) 0 Bonus (1784) 1784 TOTAL SCORE: 9354 Bonus ------- Follower Combat Kills 184 Aligned with FarCom 300 Met Data Miner 300 Met Warlord at Base 500 MAIN.C Attacked Warlord 500 Cogmind --------- Core Integrity 0/1000 Matter 300/300 Energy 95/100 System Corruption 5% Temperature Warm (169) Movement Flying (55) Location -4/Proximity Caves Parts ------- > --- POWER (1) -------- (None) > --- PROPULSION (4) --- Makeshift Flight Unit > --- UTILITY (10) ----- Advanced Weight Redist. System Machine Analyzer Makeshift Terrain Scan Processor Advanced Terrain Scan Processor Advanced Terrain Scan Processor Improved Utility Shielding Makeshift Hacking Suite Makeshift Hacking Suite System Mapper Authchip [R/Combat] > --- WEAPON (2) ------- Makeshift Hammer > --- INVENTORY (5) ---- Transmission Jammer Experimental Phase Shifter Authchip [Propulsion] Splice Drone Bay (4/6) Field Lobotomy Kit (5) Peak State ------------ > --- POWER ------------ Light Fission Core > --- PROPULSION ------- VTOL Module Cooled VTOL Module Makeshift Flight Unit Makeshift Flight Unit > --- UTILITY ---------- Advanced Weight Redist. System Trap Scanner Machine Analyzer Makeshift Terrain Scan Processor Advanced Terrain Scan Processor Advanced Terrain Scan Processor Transmission Jammer Cloaking Device Makeshift Hacking Suite Makeshift Hacking Suite > --- WEAPON ----------- Greatsword > --- INVENTORY -------- Makeshift Hacking Suite Authchip [Propulsion] Splice Drone Bay Heavy Missile Launcher Field Lobotomy Kit [Rating: 68] Favorites ----------- Power Light Fission Core Engine Backup Power III Power Core Light Fission Core Propulsion Cooled VTOL Module Hover Unit Backup Propulsion III Flight Unit Cooled VTOL Module Utility Advanced Terrain Scan Processor Device Advanced Weight Redist. System Storage Large Battery Processor Advanced Terrain Scan Processor Hackware Makeshift Hacking Suite Protection Improved Utility Shielding Weapon Greatsword Energy Gun Backup Laser III Ballistic Gun Light Assault Rifle Launcher Heavy Missile Launcher Impact Weapon Makeshift Hammer Slashing Weapon Greatsword Build | -11 -10 -10 -10 -9 -8 -7 -6 -6 -6 -6 -5 -5 -5 -5 -5 -4 ------- Run | Scr Mat Min Exi Min Mat Fac Fac Low Low Dat Pro Fac Upp Upp War Pro Slots Evolved 10 | . . . . . 4 2 2 . . . . 2 . . . . Power . | . . . . . . . . . . . . . . . . . Propulsion 2 | . . . . . 1 . . . . . . 1 . . . . Utility 8 | . . . . . 3 2 2 . . . . 1 . . . . Weapon . | . . . . . . . . . . . . . . . . . Parts Attached 61 | 2 2 3 . 2 2 10 8 6 4 . . 1 4 4 10 3 Power 5 | . 1 1 . . . 1 1 . . . . . . . 1 . Engine 4 | . 1 1 . . . 1 . . . . . . . . 1 . Core 1 | . . . . . . . 1 . . . . . . . . . Reactor . | . . . . . . . . . . . . . . . . . Propulsion 11 | . . 2 . . . 2 1 2 2 . . . 1 . . 1 Treads . | . . . . . . . . . . . . . . . . . Leg . | . . . . . . . . . . . . . . . . . Wheel . | . . . . . . . . . . . . . . . . . Hover . | . . . . . . . . . . . . . . . . . Flight 11 | . . 2 . . . 2 1 2 2 . . . 1 . . 1 Utility 31 | . 1 . . 2 2 6 6 . 2 . . 1 1 1 7 2 Device 17 | . 1 . . 1 1 3 5 . . . . . . 1 5 . Storage 2 | . . . . 1 . 1 . . . . . . . . . . Processor 6 | . . . . . 1 2 1 . . . . 1 1 . . . Hackware 4 | . . . . . . . . . 2 . . . . . 1 1 Protection 2 | . . . . . . . . . . . . . . . 1 1 Artifact . | . . . . . . . . . . . . . . . . . Weapon 14 | 2 . . . . . 1 . 4 . . . . 2 3 2 . Energy Gun . | . . . . . . . . . . . . . . . . . Energy Cannon . | . . . . . . . . . . . . . . . . . Ballistic Gun 2 | 2 . . . . . . . . . . . . . . . . Ballistic Cannon . | . . . . . . . . . . . . . . . . . Launcher 5 | . . . . . . . . 2 . . . . 1 2 . . Special Weapon . | . . . . . . . . . . . . . . . . . Impact Weapon 2 | . . . . . . . . . . . . . . . 2 . Slashing Weapon 5 | . . . . . . 1 . 2 . . . . 1 1 . . Piercing Weapon . | . . . . . . . . . . . . . . . . . Special Melee Weapon . | . . . . . . . . . . . . . . . . . Unidentified Prototypes 7 | . . . . 1 . 1 . . . . . . . . 5 . Parts Lost 20 | . 1 3 . . 2 . . . . . . . 1 8 4 1 Power 4 | . . 1 . . . . . . . . . . . 1 2 . Propulsion 7 | . . . . . 2 . . . . . . . . 3 2 . Utility 4 | . . 1 . . . . . . . . . . 1 2 . . Weapon 5 | . 1 1 . . . . . . . . . . . 2 . 1 Highest Loss Streak 8 | . 1 3 . . 1 . . . . . . . 1 8 2 1 To Critical Strikes . | . . . . . . . . . . . . . . . . . Average Slot Usage (%) 72 | . 30 28 42 48 23 49 84 89 93 93 93 87 88 76 75 71 Engine 2 | . . 12 14 14 1 2 . . . . . . . . 4 . Core 2 | . . . . . . . 5 6 6 6 6 5 5 2 . . Hover 1 | . . . . . . . . . . . . . . . 4 . Flight 11 | . . 8 28 28 6 7 13 17 20 20 20 17 19 14 4 4 Device 18 | . 4 2 . . 7 17 31 33 33 33 33 29 26 19 6 5 Storage 1 | . . . . 6 1 3 6 6 4 . . . . . . . Processor 16 | . . . . . 6 14 20 20 17 13 13 16 17 23 23 23 Hackware 7 | . . . . . . . . . 4 13 13 11 11 11 14 17 Ballistic Gun 1 | . 26 6 . . . . . . . . . . . . . . Impact Weapon 1 | . . . . . . . . . . . . . . . 5 10 Slashing Weapon 2 | . . . . . . 3 6 4 6 6 6 5 4 2 . . Naked Turns 9 | . . 9 . . . . . . . . . . . . . . Heaviest Build 22 | 3 6 6 3 7 7 14 20 22 20 17 17 17 19 16 17 15 Greatest Support 30 | 3 9 9 8 8 8 20 20 24 30 21 21 23 25 25 17 17 Greatest Overweight (x) 3 | . . 1 . . . . . 1 . . . . . 2 3 . Average Overweight (x) . | . . . . . . . . . . . . . . . . . Largest Inventory Capacity 5 | 5 5 5 5 5 5 5 5 5 5 5 5 5 5 5 5 5 Average Capacity 5 | 5 5 5 5 5 5 5 5 5 5 5 5 5 5 5 5 5 Most Carried 5 | . . . 5 5 5 5 5 5 5 5 5 5 5 5 5 5 Average Carried 4 | . . . 1 4 5 4 4 4 5 5 5 4 4 3 4 5 Final Capacity 5 | 5 5 5 5 5 5 5 5 5 5 5 5 5 5 5 5 5 Final Carried 5 | . . . 5 5 5 5 5 5 5 5 5 5 5 3 5 5 Class Distribution -------------------- 33% | Hacker-Mutant 19% | Hacker-Ninja 18% | Mutant 14% | Infiltrator-Ninja 4% | Scout 3% | Derelict-Mutant Dominant Class ---------------- Mutant | -10/Materials Mutant | -10/Mines Mutant | -10/Exiles Mutant | -9/Mines Mutant | -8/Materials Scout | -7/Factory Infiltrator-Ninja | -6/Factory Infiltrator-Ninja | -6/Lower Caves Infiltrator-Ninja | -6/Lower Caves Hacker-Ninja | -6/Data Miner Hacker-Ninja | -5/Proximity Caves Hacker-Ninja | -5/Factory Hacker-Mutant | -5/Upper Caves Hacker-Mutant | -5/Upper Caves Hacker-Mutant | -5/Warlord Hacker-Mutant | -4/Proximity Caves Resources | -11 -10 -10 -10 -9 -8 -7 -6 -6 -6 -6 -5 -5 -5 -5 -5 -4 ----------- Run | Scr Mat Min Exi Min Mat Fac Fac Low Low Dat Pro Fac Upp Upp War Pro Matter Collected 1025 | 177 179 19 54 . . 100 80 116 24 . 16 10 53 67 100 30 Remotely . | . . . . . . . . . . . . . . . . . Salvage Created 1747 | . 270 36 . . . 174 296 441 . . . 129 338 63 . . Parts 80 | . 14 4 . . . 9 16 18 . . . 6 9 4 . . Haulers Intercepted 6 | . 1 . . . . 2 2 . . . . 1 . . . . Recyclers Shooed . | . . . . . . . . . . . . . . . . . Parts Field Recycled . | . . . . . . . . . . . . . . . . . Retrieved Matter . | . . . . . . . . . . . . . . . . . Parts Self-Destructed 34 | . . . . . . . . 10 . . 1 . 7 16 . . Prevented . | . . . . . . . . . . . . . . . . . Kills | -11 -10 -10 -10 -9 -8 -7 -6 -6 -6 -6 -5 -5 -5 -5 -5 -4 ------- Run | Scr Mat Min Exi Min Mat Fac Fac Low Low Dat Pro Fac Upp Upp War Pro Combat Hostiles Destroyed 26 | . 5 2 . . . . 1 8 . . . . 4 6 . . Melee 1 | . . . . . . . 1 . . . . . . . . . Guns 7 | . 5 2 . . . . . . . . . . . . . . AOE 18 | . . . . . . . . 8 . . . . 4 6 . . Classes Destroyed 7 | . 2 1 . . . 1 2 . . . . 1 . . . . Worker 3 | . . . . . . 3 . . . . . . . . . . Hauler 6 | . 1 . . . . 2 2 . . . . 1 . . . . Operator 1 | . . . . . . . 1 . . . . . . . . . Watcher 1 | . . . . . . . . . . . . 1 . . . . Swarmer 20 | . . 2 . . . . . 8 . . . . 4 6 . . Grunt 5 | . 5 . . . . . . . . . . . . . . . Programmer 1 | . . . . . . . 1 . . . . . . . . . Best Kill Streak 5 | . 2 2 . . . 3 2 4 . . . 1 4 5 . . Combat Bots Only 5 | . 2 2 . . . . 1 4 . . . . 4 5 . . Max Kills in Single Turn 4 | . 1 1 . . . 1 1 3 . . . 1 3 4 . . Gunslinging . | . . . . . . . . . . . . . . . . . Exploded 4 | . . . . . . . . 3 . . . . 3 4 . . Melee 1 | . . . . . . . 1 . . . . . . . . . Uniques/NPCs Destroyed . | . . . . . . . . . . . . . . . . . Combat | -11 -10 -10 -10 -9 -8 -7 -6 -6 -6 -6 -5 -5 -5 -5 -5 -4 -------- Run | Scr Mat Min Exi Min Mat Fac Fac Low Low Dat Pro Fac Upp Upp War Pro Damage Taken 3157 | . 316 188 . . 322 41 14 97 . . 37 135 82 850 285 790 Core 1606 | . 151 87 . . 260 41 14 27 . . 17 25 34 373 43 534 Absorbed by Shields . | . . . . . . . . . . . . . . . . . Redirected to Shielding 34 | . . . . . . . . . . . . . . . 7 27 Regen/Repaired (Parts) 15 | . . . . . . . . . . . . . . . 15 . Core Remaining (%) 68 | 100 . . . 4 52 94 . . . . 93 . . . . . Volleys Fired 58 | . 37 12 . . . . . 4 . . . . 2 3 . . Largest 2 | . 2 1 . . . . . 1 . . . . 1 1 . . Hottest 40 | . 40 20 . . . . . 39 . . . . 39 39 . . Shots Fired 86 | . 65 12 . . . . . 4 . . . . 2 3 . . Gun 77 | . 65 12 . . . . . . . . . . . . . . Cannon . | . . . . . . . . . . . . . . . . . Launcher 9 | . . . . . . . . 4 . . . . 2 3 . . Special . | . . . . . . . . . . . . . . . . . Kinetic 77 | . 65 12 . . . . . . . . . . . . . . Thermal . | . . . . . . . . . . . . . . . . . Explosive 9 | . . . . . . . . 4 . . . . 2 3 . . Electromagnetic . | . . . . . . . . . . . . . . . . . Robot Hit Streak 7 | . 7 1 . . . . . . . . . . . 1 . . Robot Miss Streak 7 | . 3 7 . . . . . . . . . . . 1 . . Penetration Max . | . . . . . . . . . . . . . . . . . Secondary Targets . | . . . . . . . . . . . . . . . . . Shots Hit Robots 83 | . 46 2 . . . 6 6 10 . . . 7 5 1 . . Core Hits 51 | . 14 5 . . . 5 3 10 . . . 1 8 5 . . Critical Kills . | . . . . . . . . . . . . . . . . . Critical Parts Destroyed . | . . . . . . . . . . . . . . . . . Critical Strikes . | . . . . . . . . . . . . . . . . . Melee Attacks 54 | . . . . . . 8 10 15 . . . 15 5 1 . . Impact . | . . . . . . . . . . . . . . . . . Slashing 54 | . . . . . . 8 10 15 . . . 15 5 1 . . Piercing . | . . . . . . . . . . . . . . . . . Sneak Attacks 8 | . . . . . . 5 2 . . . . 1 . . . . Combat Hostiles . | . . . . . . . . . . . . . . . . . Follow-up Attacks . | . . . . . . . . . . . . . . . . . Damage Inflicted 5024 | . 445 41 . . 10 566 483 1612 . . . 434 834 599 . . Guns 468 | . 445 23 . . . . . . . . . . . . . . Cannons . | . . . . . . . . . . . . . . . . . Explosions 1531 | . . . . . . . . 618 . . . . 314 599 . . Melee 2997 | . . . . . . 566 483 994 . . . 434 520 . . . Ramming 28 | . . 18 . . 10 . . . . . . . . . . . Kinetic 468 | . 445 23 . . . . . . . . . . . . . . Thermal . | . . . . . . . . . . . . . . . . . Explosive 1531 | . . . . . . . . 618 . . . . 314 599 . . Electromagnetic . | . . . . . . . . . . . . . . . . . Impact . | . . . . . . . . . . . . . . . . . Slashing 2997 | . . . . . . 566 483 994 . . . 434 520 . . . Piercing . | . . . . . . . . . . . . . . . . . Highest Corruption 5 | . . . . . . . . . . . . . . . 1 5 Average Corruption 1 | . . . . . . . . . . . . . . . 1 2 Corruption Purged . | . . . . . . . . . . . . . . . . . Corruption Blocked 24 | . . . . . . . . . . . . . . . 24 . Effects 1 | . . . . . . . . . . . . . . . . 1 Heat Flow Errors 1 | . . . . . . . . . . . . . . . . 1 Overload Shots . | . . . . . . . . . . . . . . . . . Overflow Damage 870 | . . . . . . . 58 564 . . . 49 112 87 . . Projectiles . | . . . . . . . . . . . . . . . . . Explosions 158 | . . . . . . . . 35 . . . . 36 87 . . Melee 712 | . . . . . . . 58 529 . . . 49 76 . . . Knockbacks . | . . . . . . . . . . . . . . . . . Impact . | . . . . . . . . . . . . . . . . . Kinetic . | . . . . . . . . . . . . . . . . . Secondary . | . . . . . . . . . . . . . . . . . Self-Inflicted Damage 74 | . . 7 . . 4 . . . . . . . . 63 . . Shots 1 | . . . . . . . . . . . . . . 1 . . Rammed 17 | . . 14 . . 3 . . . . . . . . . . . Targets Rammed 17 | . . 14 . . 3 . . . . . . . . . . . Kicked . | . . . . . . . . . . . . . . . . . Crushed . | . . . . . . . . . . . . . . . . . Highest Temperature 258 | . 10 . . . . . . . . . . . . 2 . 258 Average Temperature 43 | . 2 . . . . . . . . . . . . 2 . 218 Received Heat Transfer 471 | . 174 . . . 63 . . 6 . . . 27 . 144 . 57 Siege Activations . | . . . . . . . . . . . . . . . . . Robots Corrupted . | . . . . . . . . . . . . . . . . . Combat Hostiles . | . . . . . . . . . . . . . . . . . Parts Fried . | . . . . . . . . . . . . . . . . . Impact Corruptions . | . . . . . . . . . . . . . . . . . Robots Melted . | . . . . . . . . . . . . . . . . . Combat Hostiles . | . . . . . . . . . . . . . . . . . Parts Melted . | . . . . . . . . . . . . . . . . . Heat Transferred . | . . . . . . . . . . . . . . . . . Parts Sabotaged . | . . . . . . . . . . . . . . . . . Parts Stolen . | . . . . . . . . . . . . . . . . . Parts Stripped . | . . . . . . . . . . . . . . . . . Power Chain Reactions . | . . . . . . . . . . . . . . . . . Missiles Intercepted . | . . . . . . . . . . . . . . . . . Alert | -11 -10 -10 -10 -9 -8 -7 -6 -6 -6 -6 -5 -5 -5 -5 -5 -4 ------- Run | Scr Mat Min Exi Min Mat Fac Fac Low Low Dat Pro Fac Upp Upp War Pro Peak Influence 153 | . 153 104 . . 100 126 86 . . . . 73 . . . . Initial 59 | . . 59 . . . 45 15 . . . . 10 . . . . Average 52 | . 84 86 . . 13 78 45 . . . . 35 . . . . Maximum Alert Level . | . . . . . . . . . . . . . . . . . Low Security (%) 100 | 100 100 100 . 100 100 100 100 . . . . 100 . . . . Level 1 . | . . . . . . . . . . . . . . . . . Level 2 . | . . . . . . . . . . . . . . . . . Level 3 . | . . . . . . . . . . . . . . . . . Level 4 . | . . . . . . . . . . . . . . . . . Level 5 . | . . . . . . . . . . . . . . . . . High Security . | . . . . . . . . . . . . . . . . . Max Security . | . . . . . . . . . . . . . . . . . Squads Dispatched 10 | . 2 . . . 2 2 3 . . . . 1 . . . . Investigation 6 | . 2 . . . 1 1 1 . . . . 1 . . . . Extermination 1 | . . . . . . . 1 . . . . . . . . . Reinforcement 2 | . . . . . 1 . 1 . . . . . . . . . Assault . | . . . . . . . . . . . . . . . . . Garrison 1 | . . . . . . 1 . . . . . . . . . . Intercept . | . . . . . . . . . . . . . . . . . Searches Triggered . | . . . . . . . . . . . . . . . . . Construction Impeded . | . . . . . . . . . . . . . . . . . Haulers Reinforced 1 | . . . . . . . 1 . . . . . . . . . Active Scanning Responses . | . . . . . . . . . . . . . . . . . Cargo Convoy Interrupts . | . . . . . . . . . . . . . . . . . Stealth | -11 -10 -10 -10 -9 -8 -7 -6 -6 -6 -6 -5 -5 -5 -5 -5 -4 --------- Run | Scr Mat Min Exi Min Mat Fac Fac Low Low Dat Pro Fac Upp Upp War Pro Distress Signals 2 | . . . . . 1 . 1 . . . . . . . . . Communications Jammed . | . . . . . . . . . . . . . . . . . Distress Signals . | . . . . . . . . . . . . . . . . . Times Spotted 116 | . 5 4 . . 14 3 3 8 . . 2 10 4 17 33 13 Peak Tracking Total 14 | . 2 3 . . 10 2 2 4 . . 2 9 4 8 14 10 Tactical Retreats 14 | . . 1 . . 1 2 . 2 . . . 1 . 2 2 3 Traps | -11 -10 -10 -10 -9 -8 -7 -6 -6 -6 -6 -5 -5 -5 -5 -5 -4 ------- Run | Scr Mat Min Exi Min Mat Fac Fac Low Low Dat Pro Fac Upp Upp War Pro Traps Triggered 4 | . 1 . . . 1 2 . . . . . . . . . . Indirectly . | . . . . . . . . . . . . . . . . . Trap Hack Attempts . | . . . . . . . . . . . . . . . . . Triggered . | . . . . . . . . . . . . . . . . . Disarmed . | . . . . . . . . . . . . . . . . . Reprogrammed . | . . . . . . . . . . . . . . . . . Reused . | . . . . . . . . . . . . . . . . . Traps Extracted . | . . . . . . . . . . . . . . . . . Installed . | . . . . . . . . . . . . . . . . . Triggered 25 | . . . . . . . . . 1 . . . . . 24 . Machines | -11 -10 -10 -10 -9 -8 -7 -6 -6 -6 -6 -5 -5 -5 -5 -5 -4 ---------- Run | Scr Mat Min Exi Min Mat Fac Fac Low Low Dat Pro Fac Upp Upp War Pro Machines Disabled . | . . . . . . . . . . . . . . . . . Max in Single Turn . | . . . . . . . . . . . . . . . . . Garrison Access 1 | . . . . . . . . . . . . 1 . . . . Machines Sabotaged . | . . . . . . . . . . . . . . . . . Garrisons Compromised . | . . . . . . . . . . . . . . . . . Overloaded Fab Kills . | . . . . . . . . . . . . . . . . . Hacking | -11 -10 -10 -10 -9 -8 -7 -6 -6 -6 -6 -5 -5 -5 -5 -5 -4 --------- Run | Scr Mat Min Exi Min Mat Fac Fac Low Low Dat Pro Fac Upp Upp War Pro Machines Accessed 34 | . 3 . 2 1 1 5 8 . 1 4 . 8 . . 1 . Terminals 16 | . 3 . . . 1 3 3 . . . . 6 . . . . Fabricators 4 | . . . . . . 1 2 . . . . 1 . . . . Repair Stations . | . . . . . . . . . . . . . . . . . Recycling Units 3 | . . . . . . 1 2 . . . . . . . . . Scanalyzers 1 | . . . . . . . 1 . . . . . . . . . Garrison Access 1 | . . . . . . . . . . . . 1 . . . . Total Hacks 89 | . 9 . 2 1 3 8 21 . 1 32 . 11 . . 1 . Successful 60 | . 3 . 2 1 1 5 6 . 1 32 . 8 . . 1 . Failed 29 | . 6 . . . 2 3 15 . . . . 3 . . . . Catastrophic 6 | . . . . . . 1 3 . . . . 2 . . . . Database Lockouts . | . . . . . . . . . . . . . . . . . Manual 19 | . 3 . 1 . 1 4 4 . . . . 5 . . 1 . Terminals 32 | . 9 . . . 3 4 8 . . . . 8 . . . . Fabricators 10 | . . . . . . 2 6 . . . . 2 . . . . Repair Stations . | . . . . . . . . . . . . . . . . . Recycling Units 6 | . . . . . . 2 4 . . . . . . . . . Scanalyzers 3 | . . . . . . . 3 . . . . . . . . . Garrison Access 1 | . . . . . . . . . . . . 1 . . . . Terminal Hacks 45 | . 2 . 2 1 1 1 1 . 1 32 . 3 . . 1 . Record 12 | . . . 1 . . . . . . 11 . . . . . . Part Schematic 13 | . . . . . . . . . . 12 . 1 . . . . Robot Schematic 6 | . . . . . . . . . . 6 . . . . . . Robot Analysis 1 | . 1 . . . . . . . . . . . . . . . Prototype ID Bank 3 | . . . . . . . . . . 3 . . . . . . Open Door 3 | . . . . 1 . . . . 1 . . . . . 1 . Open DSF 2 | . . . . . . 1 . . . . . 1 . . . . Alert Level 1 | . . . . . . . 1 . . . . . . . . . Hauler Manifests 1 | . . . . . . . . . . . . 1 . . . . Zone Layout 2 | . 1 . . . 1 . . . . . . . . . . . EX-Prototype ID Bank 1 | . . . 1 . . . . . . . . . . . . . Fabricator Hacks 3 | . . . . . . 1 1 . . . . 1 . . . . Load Schematic 1 | . . . . . . . . . . . . 1 . . . . Build 2 | . . . . . . 1 1 . . . . . . . . . Repair Station Hacks . | . . . . . . . . . . . . . . . . . Recycling Unit Hacks 4 | . . . . . . 2 2 . . . . . . . . . Retrieve Matter 1 | . . . . . . . 1 . . . . . . . . . Retrieve Components 3 | . . . . . . 2 1 . . . . . . . . . Scanalyzer 1 | . . . . . . . 1 . . . . . . . . . Insert Component 1 | . . . . . . . 1 . . . . . . . . . Garrison Access Hacks 1 | . . . . . . . . . . . . 1 . . . . Seal Access 1 | . . . . . . . . . . . . 1 . . . . Unauthorized Hacks 6 | . 1 . . . . 1 1 . . . . 3 . . . . Terminals 4 | . 1 . . . . . 1 . . . . 2 . . . . Track 1 | . 1 . . . . . . . . . . . . . . . Assimilate 1 | . . . . . . . . . . . . 1 . . . . Botnet 1 | . . . . . . . 1 . . . . . . . . . Operators 1 | . . . . . . . . . . . . 1 . . . . Fabricators 2 | . . . . . . 1 . . . . . 1 . . . . Prioritize 1 | . . . . . . 1 . . . . . . . . . . Recompile 1 | . . . . . . . . . . . . 1 . . . . Repair Stations . | . . . . . . . . . . . . . . . . . Recycling Units . | . . . . . . . . . . . . . . . . . Scanalyzers . | . . . . . . . . . . . . . . . . . Garrison Access . | . . . . . . . . . . . . . . . . . Data Cores Recovered 1 | . . . . . . . 1 . . . . . . . . . Used . | . . . . . . . . . . . . . . . . . Hacking Detections 18 | . 3 . . . 1 4 6 . . . . 4 . . . . Full Trace Events 3 | . 2 . . . . . 1 . . . . . . . . . Feedback Events . | . . . . . . . . . . . . . . . . . Feedback Blocked . | . . . . . . . . . . . . . . . . . Robot Schematics Acquired 6 | . . . . . . . . . . 6 . . . . . . Robots Built . | . . . . . . . . . . . . . . . . . Authchips . | . . . . . . . . . . . . . . . . . Time . | . . . . . . . . . . . . . . . . . Total Robot Build Rating . | . . . . . . . . . . . . . . . . . Part Schematics Acquired 13 | . . . . . . . . . . 12 . 1 . . . . Parts Built 3 | . . . . . . 2 1 . . . . . . . . . Authchips . | . . . . . . . . . . . . . . . . . Time 190 | . . . . . . 106 84 . . . . . . . . . Total Part Build Rating 18 | . . . . . . 12 6 . . . . . . . . . Parts Repaired . | . . . . . . . . . . . . . . . . . Time . | . . . . . . . . . . . . . . . . . Parts Recycled . | . . . . . . . . . . . . . . . . . Recycled Matter . | . . . . . . . . . . . . . . . . . Retrieved Matter . | . . . . . . . . . . . . . . . . . Retrieved Components . | . . . . . . . . . . . . . . . . . Parts Scanalyzed 1 | . . . . . . . 1 . . . . . . . . . Part Schematics Acquired . | . . . . . . . . . . . . . . . . . Parts Damaged . | . . . . . . . . . . . . . . . . . Bothacking | -11 -10 -10 -10 -9 -8 -7 -6 -6 -6 -6 -5 -5 -5 -5 -5 -4 ------------ Run | Scr Mat Min Exi Min Mat Fac Fac Low Low Dat Pro Fac Upp Upp War Pro Used RIF Installer . | . . . . . . . . . . . . . . . . . Robots Hacked . | . . . . . . . . . . . . . . . . . Non-combat . | . . . . . . . . . . . . . . . . . Combat . | . . . . . . . . . . . . . . . . . Robot Hacks Applied . | . . . . . . . . . . . . . . . . . Relay Couplers Released . | . . . . . . . . . . . . . . . . . Fabnet Peak Effective % . | . . . . . . . . . . . . . . . . . Robots Rewired 3 | . . . . . . . . . . . . . . . 3 . Allies Hacked 1 | . . . . . . . . . . . . 1 . . . . Hacks Repelled . | . . . . . . . . . . . . . . . . . Allies | -11 -10 -10 -10 -9 -8 -7 -6 -6 -6 -6 -5 -5 -5 -5 -5 -4 -------- Run | Scr Mat Min Exi Min Mat Fac Fac Low Low Dat Pro Fac Upp Upp War Pro Total Allies 8 | . . . . . . . . . . . 1 1 . 3 3 . Largest Group 3 | . . . . . . . . . . . 1 1 . 1 3 . Highest-Rated Group 154 | . . . . . . . . . . . 96 26 . 41 154 . Highest-Rated Ally 96 | . . . . . . . . . . . 96 26 . 41 65 . Total Orders 1 | . . . . . . . . . . . . . . . 1 . AID 1 | . . . . . . . . . . . . . . . 1 . Ally Attacks 51 | . . . . . . . . . . . 6 . . 37 8 . Total Damage 404 | . . . . . . . . . . . 96 . . 223 85 . Kills 4 | . . . . . . . . . . . 1 . . 3 . . Allies Corrupted 1 | . . . . . . . . . . . . . . 1 . . Allies Melted 1 | . . . . . . . . . . . . . . . 1 . Intel | -11 -10 -10 -10 -9 -8 -7 -6 -6 -6 -6 -5 -5 -5 -5 -5 -4 ------- Run | Scr Mat Min Exi Min Mat Fac Fac Low Low Dat Pro Fac Upp Upp War Pro Robot Analysis Total 1 | . 1 . . . . . . . . . . . . . . . Derelict Logs Recovered 8 | . . . . 1 . . . 2 2 . 1 . . 1 . 1 Drone Launches 34 | . . . . . . . . . . . . . . 34 . . Drone Recoveries 32 | . . . . . . . . . . . . . . 32 . . Exploration | -11 -10 -10 -10 -9 -8 -7 -6 -6 -6 -6 -5 -5 -5 -5 -5 -4 ------------- Run | Scr Mat Min Exi Min Mat Fac Fac Low Low Dat Pro Fac Upp Upp War Pro Turns Passed 4280 | 16 212 63 136 66 116 437 406 335 120 37 143 469 273 358 982 111 Spaces Moved 7010 | 25 201 53 354 148 247 842 808 836 324 88 265 738 634 287 969 191 Core 544 | 25 201 7 . . 87 163 . . . . . . . 7 32 22 Treads . | . . . . . . . . . . . . . . . . . Legs . | . . . . . . . . . . . . . . . . . Wheels . | . . . . . . . . . . . . . . . . . Hover 449 | . . . . . . . . . . . . . . . 449 . Flight 6017 | . . 46 354 148 160 679 808 836 324 88 265 738 634 280 488 169 Fastest Speed 30 | 50 50 37 37 37 37 34 34 30 30 42 42 36 36 35 35 50 Average Speed 42 | 50 50 42 37 37 42 40 34 32 34 42 42 41 38 65 56 54 Slowest Speed 230 | 50 50 100 37 37 50 50 34 106 42 42 42 42 42 150 230 55 Overloaded Moves 4 | . . . . . . . . . . . . 4 . . . . Propulsion Burnouts . | . . . . . . . . . . . . . . . . . Robots Hopped 7 | . . 1 . 1 3 . . . . . . 2 . . . . Cave-ins Triggered . | . . . . . . . . . . . . . . . . . Exploration Rate (%) 42 | 3 48 14 77 28 27 20 15 86 51 70 47 17 60 40 87 38 Regions Visited 16 Branch Regions 11 Pre-discovered Areas 4 | . . . 1 1 . . . 1 . 1 . . . . . . Known Exits Taken 5 | . . . . . 1 1 1 1 . . . 1 . . . . Unknown Exits Taken 11 | 1 1 1 1 1 . . . . 1 1 1 . 1 1 1 . Scrap Searched 13 | . . . . . . . . 3 1 . 1 . 2 2 . 4 Spaces Dug 102 | . . . . . . 2 1 45 . . . 7 32 15 . . Terrain Destroyed 141 | . . . . . . 2 1 45 . . . 7 32 54 . . Melee 11 | . . . . . . 2 1 1 . . . 7 . . . . Projectile . | . . . . . . . . . . . . . . . . . AOE 130 | . . . . . . . . 44 . . . . 32 54 . . Terrain Rammed . | . . . . . . . . . . . . . . . . . Walls Destroyed . | . . . . . . . . . . . . . . . . . Machines Disabled . | . . . . . . . . . . . . . . . . . Actions | -11 -10 -10 -10 -9 -8 -7 -6 -6 -6 -6 -5 -5 -5 -5 -5 -4 --------- Run | Scr Mat Min Exi Min Mat Fac Fac Low Low Dat Pro Fac Upp Upp War Pro Total 8106 | 26 253 80 358 157 253 916 918 865 335 87 296 865 646 452 1402 197 Wait 787 | . 14 . . 8 3 49 87 . . . 32 111 . 156 325 2 Move 6980 | 24 200 50 353 145 240 841 807 835 323 87 264 733 633 286 968 191 Hop 7 | . . 1 . 1 3 . . . . . . 2 . . . . Pick Up 13 | . . . 5 . . 4 . . 2 . . 2 . . . . Fast Attach 49 | 2 2 3 . 1 2 9 6 3 4 . . . 3 1 10 3 Attach 10 | . . . . 1 . 1 1 2 . . . 1 1 3 . . Detach 12 | . . . . 1 . . 3 2 1 . . . 1 1 3 . Swap 2 | . . . . . . . 1 1 . . . . . . . . Drop 31 | . . . . . 2 4 3 3 5 . . 1 1 1 10 1 Fire 58 | . 37 12 . . . . . 4 . . . . 2 3 . . Melee 54 | . . . . . . 8 10 15 . . . 15 5 1 . . Ram 17 | . . 14 . . 3 . . . . . . . . . . . Kick . | . . . . . . . . . . . . . . . . . Crush . | . . . . . . . . . . . . . . . . . Escape Stasis . | . . . . . . . . . . . . . . . . . Rewire 86 | . . . . . . . . . . . . . . . 86 . Trap . | . . . . . . . . . . . . . . . . . Miscellaneous . | . . . . . . . . . . . . . . . . . Route ------- -11/Scrapyard -10/Materials (discovered 2 exits: [*Mat] / [*Min]) -10/Mines -10/Exiles (discovered 2 exits: *Min x2) -9/Mines -8/Materials -7/Factory (discovered 2 exits: *Fac x2) -6/Factory -6/Lower Caves -6/Lower Caves -6/Data Miner -5/Proximity Caves -5/Factory (discovered 2 exits: *Upp / Ext) -5/Upper Caves -5/Upper Caves -5/Warlord -4/Proximity Caves History --------- Turn | Location | Event 4 | -11/Scrapyard | Discovered new exit (range 15) 17 | -11/Scrapyard | Entered Materials 121 | -10/Materials | Discovered new exit (range 5) 164 | -10/Materials | Discovered new exit (range 12) 201 | -10/Materials | Core integrity fell below 50% 229 | -10/Materials | Entered Mines 265 | -10/Mines | Core integrity fell below 20% 290 | -10/Mines | Deemed a non-threat by the Exiles lab entrance 290 | -10/Mines | Discovered new exit (range 5) 292 | -10/Mines | Entered Exiles 293 | -10/Exiles | Lost 3 parts (1p1u1w) 298 | -10/Exiles | Discovered new exit (range 15) 302 | -10/Exiles | Met 8R-AWN 308 | -10/Exiles | Met EX-HEX 315 | -10/Exiles | Build established: Mutant 319 | -10/Exiles | Met EX-BIN 324 | -10/Exiles | Aligned with FarCom system 324 | -10/Exiles | Given EX-Vault access code 333 | -10/Exiles | Opened EX-Vault 335 | -10/Exiles | Found Field Lobotomy Kit 344 | -10/Exiles | Warned to stay clear of 0b10 Research branches 356 | -10/Exiles | Met EX-DEC 359 | -10/Exiles | Learned location of Zion (-7) 378 | -10/Exiles | Visited The Gauntlet 425 | -10/Exiles | Discovered new exit (range 11) 428 | -10/Exiles | Left Exiles lab with Field Lobotomy Kit 428 | -10/Exiles | Entered Mines 452 | -9/Mines | Found the Drone Emporium 464 | -9/Mines | Found Prototype Device 464 | -9/Mines | Identified Splice Drone Bay 491 | -9/Mines | Discovered new exit (range 9) 494 | -9/Mines | Entered Materials 494 | -8/Materials | Evolved 4 slots: Propulsion x1, Utility x3 605 | -8/Materials | Discovered new exit (range 7) 608 | -8/Materials | Identified exit to Factory 610 | -8/Materials | Entered Factory 610 | -7/Factory | Evolved 2 slots: Utility x2 673 | -7/Factory | Discovered new exit (range 9) 778 | -7/Factory | Fabricated Enh. Gauss Cannon? 819 | -7/Factory | Discovered new exit (range 9) 939 | -7/Factory | Garrison activated, responded to threat 1046 | -7/Factory | Identified exit to Factory 1047 | -7/Factory | Entered another Factory area 1047 | -6/Factory | Evolved 2 slots: Utility x2 1136 | -6/Factory | Fabricated Imp. KE Penetrator? 1323 | -6/Factory | Discovered new exit (range 7) 1328 | -6/Factory | Identified exit to Lower Caves 1453 | -6/Factory | Entered Lower Caves 1498 | -6/Lower Caves | Build established: Infiltrator-Ninja 1631 | -6/Lower Caves | Encountered a Warlord checkpoint 1745 | -6/Lower Caves | Discovered new exit (range 7) 1787 | -6/Lower Caves | Identified exit to Lower Caves 1788 | -6/Lower Caves | Entered another Lower Caves area 1815 | -6/Lower Caves | Spotted B-75 Beast 1883 | -6/Lower Caves | Learned 4 Factory zone layouts 1891 | -6/Lower Caves | Learned 12 Factory zone layouts 1897 | -6/Lower Caves | Encountered a Warlord checkpoint 1900 | -6/Lower Caves | Discovered new exit (range 15) 1908 | -6/Lower Caves | Entered Data Miner 1908 | -6/Data Miner | Discovered new exit (range 6) 1916 | -6/Data Miner | Met Data Miner 1926 | -6/Data Miner | Learned location of Section 7 (-2) 1926 | -6/Data Miner | Acquired the access code to Warlord's prototype stash 1933 | -6/Data Miner | Received God Mode back door access code from Data Miner 1945 | -6/Data Miner | Entered Proximity Caves 1995 | -5/Proximity Caves | Learned Factory garrison access intel 2047 | -5/Proximity Caves | Escorted by Enhanced Grunt 2050 | -5/Proximity Caves | Discovered new exit (range 12) 2088 | -5/Proximity Caves | Entered Factory 2088 | -5/Factory | Evolved 2 slots: Propulsion x1, Utility x1 2089 | -5/Factory | Identified exit to Extension 2090 | -5/Factory | Identified exit to Upper Caves 2091 | -5/Factory | Loaded intel: 4 garrison access locations 2149 | -5/Factory | Build established: Hacker-Ninja 2156 | -5/Factory | Identified exit to DSF 2557 | -5/Factory | Entered Upper Caves 2816 | -5/Upper Caves | Discovered new exit (range 6) 2830 | -5/Upper Caves | Entered another Upper Caves area 3005 | -5/Upper Caves | Attracted the attention of an 0b10 checkpoint 3053 | -5/Upper Caves | Lost 8 parts (1p3n2u2w) 3134 | -5/Upper Caves | Learned Factory stockpile data 3182 | -5/Upper Caves | Discovered new exit (range 5) 3188 | -5/Upper Caves | Entered Warlord 3244 | -5/Warlord | Visited the Vortex Lab 3253 | -5/Warlord | Warlord's base attacked by MAIN.C 3305 | -5/Warlord | Build established: Hacker-Mutant 3587 | -5/Warlord | Met Warlord 3593 | -5/Warlord | Opened Warlord's prototype stash 3595 | -5/Warlord | Found Prototype Hackware 3595 | -5/Warlord | Identified System Mapper 3600 | -5/Warlord | Found Prototype Device 3600 | -5/Warlord | Identified Exp. Focal Shield 3603 | -5/Warlord | Warlord forces counterattacked 3609 | -5/Warlord | Found Prototype Device 3609 | -5/Warlord | Identified Exp. Phase Shifter 3928 | -5/Warlord | Warlord base infiltrated, sounded retreat 3991 | -5/Warlord | Spotted Executioner 4000 | -5/Warlord | Spotted Executioner 4106 | -5/Warlord | Spotted Executioner 4164 | -5/Warlord | Discovered new exit (range 14) 4170 | -5/Warlord | Entered Proximity Caves 4172 | -4/Proximity Caves | Attracted the attention of an 0b10 checkpoint 4180 | -4/Proximity Caves | Learned Research non-interactive machine intel 4198 | -4/Proximity Caves | Core integrity fell below 50% 4272 | -4/Proximity Caves | Core integrity fell below 20% 4281 | -4/Proximity Caves | Destroyed by G-67 Veteran with Field Laser Last Messages --------------- 04250_ Slug penetrates Wall. 04250_ Penetrated by Slug. 04271_ P-70 Sage resets P-70 Sage, system corruption cleaned. 04272_ Slug penetrates Wall. 04272_ Penetrated by Slug. 04272_ Slug penetrates Wall. 04273_ Penetrated by Slug. 04273_ Slug penetrates Wall. 04273_ Searching scrap... 04273_ Found Imp. Weapon Cycler. 04273_ Found Imp. Corruption Screen. 04273_ Found Imp. Target Analyzer. 04273_ Found Thermal Shield. 04273_ Found Authchip [R/Combat]. 04273_ Found 13 Matter. 04274_ Acquired 3 matter. 04277_ System corrupted: Heat flow error (+294). 04278_ Mak. Hammer destroyed. 04278_ Acquired Authchip [R/Combat]. 04280_ Acquired 10 matter. Map ----- +----------------------------------------------------+ | ??# #????????????????????????????????? | | ??# #????????????????????????????????? | | ??# #?????????????????????????????????? | | ??# ## # ###?????????????????????????????????? | | ??# ## #?####???????????####??????????????????? | | #### ## ### ##?????????## ##??###????????????? | | ## # #????????## ### #????????????? | | # #????????# ## #????????????? | | ### #????????# #????????????? | | #####?# ##???????# #????????????? | | #??#### #???##### #????????????? | | ##?# ##?## ## ##????????????? | | #?# ### ## ##?????????????? | | #?## ### ###????????????? | | #??# ### ### ##???????????? | | # #??## #??# #???????????? | | # #???##??## #???????????? | | # #???????# ####### ##???????????? | | # #??????# #????? #????????????? | | ? ??????# #????? #???????????? | | ? ?????# ## #????? #???????????? | | ? ?????# ?# ### p#????? #???????????? | | ? ?? ?# ######### #????? #???????????? | | ? ? ######## ! #????? #???????????? | | ? !!#######b #???????????? | | ? ? ?? ?## ##@ g # #???????????? | | ?? ?????????## ## ### #####???????????? | | ?????????????## ### #?????#???????????????? | | ??????????????# ??# ?????????????????????? | | ??????????????# #??## ????????????????????? | | ??????????????# #????? ???????????????????? | | ??????????????# ##?????? ??????????????????? | | ??????????????## #???????? ?????????????????? | | ???????????????##????????? ##?????????????????? | | ?????????????????????????? ##??????????????????? | | ?????????????????????????? ##???????????????????? | | ?????????????????????????? ##????????????????????? | | ???????????????????????????#?????????????????????? | | ?????????????????????????????????????????????????? | | ?????????????????????????????????????????????????? | | ?????????????????????????????????????????????????? | | ?????????????????????????????????????????????????? | | ?????????????????????????????????????????????????? | | ?????????????????????????????????????????????????? | | ?????????????????????????????????????????????????? | | ?????????????????????????????????????????????????? | | ?????????????????????????????????????????????????? | | ?????????????????????????????????????????????????? | | ?????????????????????????????????????????????????? | | ?????????????????????????????????????????????????? | +----------------------------------------------------+ Best States ------------- Heat Dissipation 40 Energy Generation 18 Energy Capacity 360 Matter Stores 480 Matter Capacity 500 Sight Range 16 Terrain Scan Range 16 Terrain Scan Density 535 Jamming Range 12 Cloak Strength 2 Additional Mass Support 9 Armor Coverage 225 Utility Shielding 66 Phase Shifting 20 Evasion (%) 64 Offensive Hacking 42 Authchip Count 2 Item Schematics ----------------- Combat Drone Bay | -6/Data Miner | Free Lgt. Regenerative Plating | -6/Data Miner | Free Cld. Gravmag System | -6/Data Miner | Free Imp. Matter Compressor | -6/Data Miner | Free Ionic Axe | -6/Data Miner | Free Impulse Thruster | -6/Data Miner | Free Adv. Actuator Array | -6/Data Miner | Free Hvy. Gauss Cannon | -6/Data Miner | Free HERF Cannon | -6/Data Miner | Free Nova Cannon | -6/Data Miner | Free Adv. Weapon Cycler | -6/Data Miner | Free Hyp. Mass Driver | -6/Data Miner | Free Q-thruster | -5/Factory | Hacked Robot Schematics ------------------ L-41 Fighter | -6/Data Miner | Free G-50 Soldier | -6/Data Miner | Free S-27 Virus | -6/Data Miner | Free M-22 Extractor | -6/Data Miner | Free A-27 Freighter | -6/Data Miner | Free P-70 Sage | -6/Data Miner | Free Fabricated ------------ Enh. Gauss Cannon | x2 | -7/Factory | Preloaded Imp. KE Penetrator | x1 | -6/Factory | Preloaded Alien Tech Used ----------------- None Achievements -------------- None Challenges ------------ None Game ------ Seed MetafieldTerrainCycler Manual? 0 Play Time 01:06:12 Cumulative 446.6 hours Start 2022.08.03 @ 10:05:28 End 2022.08.03 @ 11:26:10 Sessions 1 Manual Loads 0 Difficulty Rogue Special Mode None Game No. 495 Rogue 494 Adventurer 0 Explorer 1 Win Type - Total 14 Types 9/0/2/3/0/0/0/0/0 Lore% 78 Gallery% 88 Achievement% 68 Wizard Run 0 Options --------- ASCII 0 Keyboard 1 Movement Vi Keybinds 0 Fullscreen 1 Font 18/SmallcapsGlow Map View 76x50 Tactical HUD 1 Map Filters NONE Filters NONE Steam 1 RUN: 9a0e550d-a2b5-4d4d-b360-103dd0ac4a8d